fUSD/lending_fUSD_20240119
["ID","MTS","AMOUNT","RATE_DAILY","PERIOD"]
[312223585,1705693879623,-1312.06,0.00026849,2]
[312223586,1705693879632,-500.0,0.00026849,2]
[312223587,1705693879642,-1440.41,0.00026849,2]
[312223588,1705693879651,-500.0,0.00026849,2]
[312223589,1705693879661,-500.0,0.00026849,2]
[312223590,1705693879671,-801.63,0.00026849,2]
[312223591,1705693879680,-500.0,0.00026849,2]
[312223592,1705693879690,-1364.63,0.00026849,2]
[312223593,1705693879700,-1869.93,0.00026849,2]
[312223594,1705693879709,-665.4,0.00026849,2]
[312223595,1705693879718,-500.0,0.00026849,2]
[312223596,1705693879728,-849.71,0.00026849,2]
[312223597,1705693879738,-500.0,0.00026849,2]
[312223598,1705693879748,-2620.86,0.00026849,2]
[312223599,1705693879757,-637.71,0.00026849,2]
[312223600,1705693879767,-1448.26,0.00026849,2]
[312223601,1705693879777,-4987.45,0.00026849,2]
[312223602,1705693879786,-500.0,0.00026849,2]
[312223603,1705693879798,-531.02,0.00026849,2]
[312223604,1705693879808,-500.0,0.00026849,2]
[312223605,1705693879818,-1552.1,0.00026849,2]
[312223606,1705693879828,-803.95,0.00026849,2]
[312223607,1705693879837,-500.0,0.00026849,2]
[312223608,1705693879848,-500.0,0.00026849,2]
[312223609,1705693879857,-896.77,0.00026849,2]
[312223610,1705693879867,-650.24,0.00026849,2]
[312223611,1705693879877,-500.0,0.00026849,2]
[312223612,1705693879886,-722.38,0.00026849,2]
[312223613,1705693879897,-568.74,0.00026849,2]
[312223614,1705693879907,-500.0,0.00026849,2]
[312223615,1705693879918,-550.84368167,0.00026849,2]
[312223616,1705693879935,-229.51631833,0.00026849,2]
[312223617,1705693879945,-500.0,0.00026849,2]
[312223618,1705693879955,-793.35,0.00026849,2]
[312223619,1705693879965,-1671.21,0.00026849,2]
[312223620,1705693879975,-58.82024356,0.00026849,2]
[312223621,1705693880003,-740.65975644,0.00026849,2]
[312223622,1705693880014,-934.16,0.00026849,2]
[312223623,1705693880025,-2127.17,0.00026849,2]
[312223624,1705693880035,-1066.92,0.00026849,2]
[312223625,1705693880050,-500.0,0.00026849,2]
[312223626,1705693880061,-500.0,0.00026849,2]
[312223627,1705693880073,-1404.62,0.00026849,2]
[312223628,1705693880083,-557.49,0.00026849,2]
[312223629,1705693880092,-1384.57,0.00026849,2]
[312223630,1705693880104,-226.99,0.00026849,2]
[312223631,1705693880115,-1299.85,0.00026849,2]
[312223632,1705693880129,-2093.33,0.00026849,2]
[312223633,1705693880139,-500.0,0.00026849,2]
[312223634,1705693880148,-500.0,0.00026849,2]
[312223635,1705693880159,-1514.23,0.00026849,2]
[312223636,1705693880169,-158.1,0.0002685,2]
[312223637,1705693880180,-500.0,0.00026874,2]
[312223638,1705693880190,-150.0,0.00026877,2]
[312223639,1705693880200,-500.0,0.00026892,2]
[312223640,1705693880212,-898.48931658,0.00026893,12]
[312223641,1705693880226,-150.0,0.00026912,4]
[312223642,1705693880237,-500.0,0.00026943,2]
[312223643,1705693880247,-150.0,0.00026948,4]
[312223644,1705693880259,-150.0,0.00026983,4]
[312223645,1705693880270,-155.0,0.00027,2]
[312223646,1705693880281,-5000.0,0.00027,2]
[312223647,1705693880295,-415.8653,0.00027,2]
[312223648,1705693880307,-500.0,0.00027,2]
[312223649,1705693880318,-500.0,0.00027,2]
[312223650,1705693880330,-500.0,0.00027,2]
[312223651,1705693880343,-500.0,0.00027,2]
[312223652,1705693880354,-500.0,0.00027,2]
[312223653,1705693880366,-500.0,0.00027,2]
[312223654,1705693880377,-500.0,0.00027,2]
[312223655,1705693880389,-500.0,0.00027,2]
[312223656,1705693880400,-500.0,0.00027,2]
[312223657,1705693880411,-500.0,0.00027,2]
[312223658,1705693880421,-500.0,0.00027,2]
[312223659,1705693880433,-500.0,0.00027,2]
[312223660,1705693880444,-500.0,0.00027,2]
[312223661,1705693880456,-500.0,0.00027,2]
[312223662,1705693880467,-500.0,0.00027,2]
[312223663,1705693880478,-500.0,0.00027,2]
[312223664,1705693880489,-500.0,0.00027,2]
[312223665,1705693880500,-500.0,0.00027,2]
[312223666,1705693880511,-500.0,0.00027,2]
[312223667,1705693880522,-500.0,0.00027,2]
[312223668,1705693880534,-500.0,0.00027,2]
[312223669,1705693880550,-600.0,0.00027,3]
[312223670,1705693880560,-500.0,0.00027011,2]
[312223671,1705693880578,-150.0,0.00027019,4]
[312223672,1705693880590,-150.01,0.00027021,2]
[312223673,1705693880601,-3296.87897521,0.00027021,2]
[312223674,1705693880611,-165.93960689,0.00027026,2]
[312223675,1705693880622,-1000.0,0.00027041,3]
[312223676,1705693880633,-1000.0,0.00027041,3]
[312223677,1705693880644,-1747.29924407,0.00027041,3]
[312223678,1705693880654,-1285.18893247,0.00027041,3]
[312223679,1705693880665,-2149.81897629,0.00027041,3]
[312223680,1705693880882,-1414.09263464,0.00027041,3]
[312223681,1705693880895,-1186.41902994,0.00027041,3]
[312223682,1705693880906,-684.70605739,0.00027041,3]
[312223683,1705693880917,-483.25705667,0.00027041,3]
[312223684,1705693880927,-1000.0,0.00027041,3]
[312223685,1705693880937,-1070.0370817,0.00027041,3]
[312223686,1705693880947,-1277.42411936,0.00027041,3]
[312223687,1705693880958,-1000.0,0.00027041,3]
[312223688,1705693880970,-410.00413452,0.00027041,3]
[312223689,1705693880981,-164.39741377,0.00027041,3]
[312223690,1705693880991,-1169.84869586,0.00027041,3]
[312223691,1705693881002,-676.55022394,0.00027041,3]
[312223692,1705693881014,-672.02655652,0.00027041,3]
[312223693,1705693881024,-1000.0,0.00027041,3]
[312223694,1705693881033,-1294.82030861,0.00027041,3]
[312223695,1705693881043,-251.34039292,0.00027041,3]
[312223696,1705693881053,-1431.36027894,0.00027041,3]
[312223697,1705693881063,-603.89644824,0.00027041,3]
[312223698,1705693881073,-167.0,0.00027043,2]
[312223699,1705693881084,-150.0,0.00027054,4]
[312223700,1705693881093,-150.0,0.00027078,2]
[312223701,1705693881104,-500.0,0.00027079,2]
[312223702,1705693881114,-150.0,0.0002709,4]
[312223703,1705693881123,-5208.80771255,0.00027104,2]
[312223704,1705693881133,-158.79482041,0.00027122,2]
[312223705,1705693881143,-150.0,0.00027122,2]
[312223706,1705693881153,-500.0,0.00027123,2]
[312223707,1705693881163,-500.0,0.00027123,2]
[312223708,1705693881174,-2365.35,0.00027123,2]
[312223709,1705693881193,-500.0,0.00027123,2]
[312223710,1705693881207,-500.0,0.00027123,2]
[312223711,1705693881218,-506.13,0.00027123,2]
[312223712,1705693881228,-556.60328801,0.00027123,2]
[312223713,1705693881238,-500.0,0.00027123,2]
[312223714,1705693881249,-500.0,0.00027123,2]
[312223715,1705693881262,-928.77,0.00027123,2]
[312223716,1705693881273,-500.0,0.00027123,2]
[312223717,1705693881285,-500.0,0.00027123,2]
[312223718,1705693881301,-500.0,0.00027123,2]
[312223719,1705693881312,-1861.12,0.00027123,2]
[312223720,1705693881322,-917.31,0.00027123,2]
[312223721,1705693881334,-1764.9,0.00027123,2]
[312223722,1705693881347,-521.62,0.00027123,2]
[312223723,1705693881359,-1130.94,0.00027123,2]
[312223724,1705693881370,-1550.69,0.00027123,2]
[312223725,1705693881381,-623.05,0.00027123,2]
[312223726,1705693881393,-500.0,0.00027123,2]
[312223727,1705693881404,-771.68,0.00027123,2]
[312223728,1705693881415,-503.49,0.00027123,2]
[312223729,1705693881426,-500.0,0.00027123,2]
[312223730,1705693881437,-1084.24,0.00027123,2]
[312223731,1705693881449,-1823.68,0.00027123,2]
[312223732,1705693881460,-3335.07,0.00027123,2]
[312223733,1705693881471,-1731.4,0.00027123,2]
[312223734,1705693881483,-2037.15,0.00027123,2]
[312223735,1705693881493,-2037.79,0.00027123,2]
[312223736,1705693881505,-500.0,0.00027123,2]
[312223737,1705693881515,-1807.75,0.00027123,2]
[312223738,1705693881526,-680.7,0.00027123,2]
[312223739,1705693881537,-1014.02,0.00027123,2]
[312223740,1705693881550,-1949.96,0.00027123,2]
[312223741,1705693881561,-500.0,0.00027123,2]
[312223742,1705693881572,-659.73,0.00027123,2]
[312223743,1705693881581,-538.39184253,0.00027123,2]
[312223744,1705693881591,-3033.49,0.00027123,2]
[312223745,1705693881601,-809.52,0.00027123,2]
[312223746,1705693881612,-1580.72,0.00027123,2]
[312223747,1705693881624,-2228.23,0.00027123,2]
[312223748,1705693881634,-500.0,0.00027123,2]
[312223749,1705693881644,-2403.96,0.00027123,2]
[312223750,1705693881654,-715.15,0.00027123,2]
[312223751,1705693881665,-1528.36,0.00027123,2]
[312223752,1705693881675,-707.27,0.00027123,2]
[312223753,1705693881685,-181.58,0.00027123,2]
[312223754,1705693881696,-839.61,0.00027123,2]
[312223755,1705693881707,-1399.25,0.00027123,2]
[312223756,1705693881717,-500.0,0.00027123,2]
[312223757,1705693881728,-500.0,0.00027123,2]
[312223758,1705693881739,-530.2,0.00027123,2]
[312223759,1705693881749,-500.0,0.00027123,2]
[312223760,1705693881760,-500.0,0.00027123,2]
[312223761,1705693881770,-500.0,0.00027123,2]
[312223762,1705693881781,-702.87,0.00027123,2]
[312223763,1705693881792,-1669.84,0.00027123,2]
[312223764,1705693881803,-500.0,0.00027123,2]
[312223765,1705693881813,-633.49,0.00027123,2]
[312223766,1705693881823,-3055.09,0.00027123,2]
[312223767,1705693881833,-4886.42,0.00027123,2]
[312223768,1705693881844,-500.0,0.00027123,2]
[312223769,1705693881854,-500.0,0.00027123,2]
[312223770,1705693881864,-1081.81,0.00027123,2]
[312223771,1705693881873,-2414.03,0.00027123,2]
[312223772,1705693881883,-1049.52,0.00027123,2]
[312223773,1705693881893,-3012.69,0.00027123,2]
[312223774,1705693881904,-500.0,0.00027123,2]
[312223775,1705693881914,-1539.41,0.00027123,2]
[312223776,1705693881925,-1065.08,0.00027123,2]
[312223777,1705693881935,-500.0,0.00027123,2]
[312223778,1705693881945,-726.75,0.00027123,2]
[312223779,1705693881955,-2998.92,0.00027123,2]
[312223780,1705693881966,-2705.22,0.00027123,2]
[312223781,1705693881976,-1147.13,0.00027123,2]
[312223782,1705693881986,-500.0,0.00027123,2]
[312223783,1705693881997,-1279.96,0.00027123,2]
[312223784,1705693882011,-549.26,0.00027123,2]
[312223785,1705693882022,-500.0,0.00027123,2]
[312223786,1705693882033,-387.95358451,0.00027123,2]
[312223787,1705693882043,-892.38,0.00027123,2]
[312223788,1705693882055,-575.11,0.00027123,2]
[312223789,1705693882066,-970.57,0.00027123,2]
[312223790,1705693882076,-1314.31,0.00027123,2]
[312223791,1705693882086,-665.66,0.00027123,2]
[312223792,1705693882095,-500.0,0.00027123,2]
[312223793,1705693882105,-1312.06,0.00027123,2]
[312223794,1705693882116,-500.0,0.00027123,2]
[312223795,1705693882125,-1440.41,0.00027123,2]
[312223796,1705693882135,-500.0,0.00027123,2]
[312223797,1705693882145,-500.0,0.00027123,2]
[312223798,1705693882156,-801.63,0.00027123,2]
[312223799,1705693882166,-500.0,0.00027123,2]
[312223800,1705693882176,-1364.63,0.00027123,2]
[312223801,1705693882186,-1869.93,0.00027123,2]
[312223802,1705693882196,-665.4,0.00027123,2]
[312223803,1705693882207,-500.0,0.00027123,2]
[312223804,1705693882218,-849.71,0.00027123,2]
[312223805,1705693882229,-500.0,0.00027123,2]
[312223806,1705693882240,-2620.86,0.00027123,2]
[312223807,1705693882250,-637.71,0.00027123,2]
[312223808,1705693882260,-1448.26,0.00027123,2]
[312223809,1705693882271,-4987.45,0.00027123,2]
[312223810,1705693882281,-500.0,0.00027123,2]
[312223811,1705693882292,-531.02,0.00027123,2]
[312223812,1705693882305,-500.0,0.00027123,2]
[312223813,1705693882316,-1552.1,0.00027123,2]
[312223814,1705693882327,-803.95,0.00027123,2]
[312223815,1705693882339,-500.0,0.00027123,2]
[312223816,1705693882351,-500.0,0.00027123,2]
[312223817,1705693882361,-896.77,0.00027123,2]
[312223818,1705693882372,-650.24,0.00027123,2]
[312223819,1705693882383,-500.0,0.00027123,2]
[312223820,1705693882393,-722.38,0.00027123,2]
[312223821,1705693882404,-568.74,0.00027123,2]
[312223822,1705693882415,-500.0,0.00027123,2]
[312223823,1705693882425,-780.36,0.00027123,2]
[312223824,1705693882436,-500.0,0.00027123,2]
[312223825,1705693882446,-793.35,0.00027123,2]
[312223826,1705693882456,-1671.21,0.00027123,2]
[312223827,1705693882466,-799.48,0.00027123,2]
[312223828,1705693882476,-934.16,0.00027123,2]
[312223829,1705693882486,-2127.17,0.00027123,2]
[312223830,1705693882496,-1066.92,0.00027123,2]
[312223831,1705693882506,-257.14,0.00027123,2]
[312223832,1705693882516,-1404.62,0.00027123,2]
[312223833,1705693882526,-500.0,0.00027123,2]
[312223834,1705693882535,-557.49,0.00027123,2]
[312223835,1705693882546,-1384.57,0.00027123,2]
[312223836,1705693882557,-2093.33,0.00027123,2]
[312223837,1705693882566,-1299.85,0.00027123,2]
[312223838,1705693882576,-500.0,0.00027123,2]
[312223839,1705693882586,-500.0,0.00027123,2]
[312223840,1705693882595,-1514.23,0.00027123,2]
[312223841,1705693882605,-150.0,0.00027126,4]
[312223842,1705693882617,-800.0,0.00027128,2]
[312223843,1705693882626,-150.0,0.00027161,4]
[312223844,1705693882636,-500.0,0.00027172,2]
[312223845,1705693882646,-150.0,0.00027197,4]
[312223846,1705693882656,-1102.0,0.000272,2]
[312223847,1705693882667,-238.0,0.000272,2]
[312223848,1705693882676,-150.0,0.00027232,4]
[312223849,1705693882689,-165.93960689,0.0002724,2]
[312223850,1705693882699,-596.64,0.00027252,2]
[312223851,1705693882709,-500.0,0.00027264,2]
[312223852,1705693882719,-150.0,0.00027268,4]
[312223853,1705693882729,-150.0,0.00027303,4]
[312223854,1705693882740,-851.41233287,0.00027329,2]
[312223855,1705693882750,-219.73663919,0.00027329,2]
[312223856,1705693882760,-1780.98849269,0.00027329,2]
[312223857,1705693882769,-150.0,0.00027339,4]
[312223858,1705693882780,-500.0,0.00027356,2]
[312223859,1705693882791,-150.0,0.00027374,4]
[312223860,1705693882803,-158.1,0.00027392,2]
[312223861,1705693882814,-4908.32082205,0.00027394,2]
[312223862,1705693882824,-500.0,0.00027397,2]
[312223863,1705693882833,-500.0,0.00027397,2]
[312223864,1705693882844,-2365.35,0.00027397,2]
[312223865,1705693882854,-500.0,0.00027397,2]
[312223866,1705693882865,-500.0,0.00027397,2]
[312223867,1705693882874,-506.13,0.00027397,2]
[312223868,1705693882884,-500.0,0.00027397,2]
[312223869,1705693882895,-500.0,0.00027397,2]
[312223870,1705693882905,-928.77,0.00027397,2]
[312223871,1705693882914,-500.0,0.00027397,2]
[312223872,1705693882925,-500.0,0.00027397,2]
[312223873,1705693882934,-225.0,0.00027397,2]
[312223874,1705693882943,-1861.12,0.00027397,2]
[312223875,1705693882954,-917.31,0.00027397,2]
[312223876,1705693882964,-1764.9,0.00027397,2]
[312223877,1705693882975,-521.62,0.00027397,2]
[312223878,1705693882984,-1130.94,0.00027397,2]
[312223879,1705693882994,-1550.69,0.00027397,2]
[312223880,1705693883004,-623.05,0.00027397,2]
[312223881,1705693883014,-500.0,0.00027397,2]
[312223882,1705693883024,-771.68,0.00027397,2]
[312223883,1705693883034,-1250.82,0.00027397,2]
[312223884,1705693883044,-503.49,0.00027397,2]
[312223885,1705693883054,-500.0,0.00027397,2]
[312223886,1705693883064,-1084.24,0.00027397,2]
[312223887,1705693883074,-1823.68,0.00027397,2]
[312223888,1705693883083,-3335.07,0.00027397,2]
[312223889,1705693883093,-1731.4,0.00027397,2]
[312223890,1705693883102,-2037.15,0.00027397,2]
[312223891,1705693883112,-2037.79,0.00027397,2]
[312223892,1705693883122,-500.0,0.00027397,2]
[312223893,1705693883132,-1807.75,0.00027397,2]
[312223894,1705693883142,-680.7,0.00027397,2]
[312223895,1705693883151,-1014.02,0.00027397,2]
[312223896,1705693883162,-1949.96,0.00027397,2]
[312223897,1705693883172,-500.0,0.00027397,2]
[312223898,1705693883182,-659.73,0.00027397,2]
[312223899,1705693883192,-3033.49,0.00027397,2]
[312223900,1705693883202,-809.52,0.00027397,2]
[312223901,1705693883212,-1580.72,0.00027397,2]
[312223902,1705693883222,-2228.23,0.00027397,2]
[312223903,1705693883232,-173.47,0.00027397,2]
[312223904,1705693883242,-2403.96,0.00027397,2]
[312223905,1705693883252,-715.15,0.00027397,2]
[312223906,1705693883262,-1528.36,0.00027397,2]
[312223907,1705693883272,-707.27,0.00027397,2]
[312223908,1705693883282,-839.61,0.00027397,2]
[312223909,1705693883293,-1399.25,0.00027397,2]
[312223910,1705693883304,-258.27,0.00027397,2]
[312223911,1705693883315,-500.0,0.00027397,2]
[312223912,1705693883326,-530.2,0.00027397,2]
[312223913,1705693883339,-500.0,0.00027397,2]
[312223914,1705693883349,-500.0,0.00027397,2]
[312223915,1705693883358,-500.0,0.00027397,2]
[312223916,1705693883372,-702.87,0.00027397,2]
[312223917,1705693883382,-1669.84,0.00027397,2]
[312223918,1705693883392,-500.0,0.00027397,2]
[312223919,1705693883402,-633.49,0.00027397,2]
[312223920,1705693883413,-3055.09,0.00027397,2]
[312223921,1705693883422,-4886.42,0.00027397,2]
[312223922,1705693883433,-500.0,0.00027397,2]
[312223923,1705693883443,-500.0,0.00027397,2]
[312223924,1705693883534,-1081.81,0.00027397,2]
[312223925,1705693883544,-2414.03,0.00027397,2]
[312223926,1705693883554,-1049.52,0.00027397,2]
[312223927,1705693883563,-3012.69,0.00027397,2]
[312223928,1705693883572,-500.0,0.00027397,2]
[312223929,1705693883582,-1539.41,0.00027397,2]
[312223930,1705693883591,-1065.08,0.00027397,2]
[312223931,1705693883601,-500.0,0.00027397,2]
[312223932,1705693883611,-726.75,0.00027397,2]
[312223933,1705693883622,-2998.92,0.00027397,2]
[312223934,1705693883631,-2705.22,0.00027397,2]
[312223935,1705693883640,-1147.13,0.00027397,2]
[312223936,1705693883650,-500.0,0.00027397,2]
[312223937,1705693883660,-1279.96,0.00027397,2]
[312223938,1705693883669,-549.26,0.00027397,2]
[312223939,1705693883679,-500.0,0.00027397,2]
[312223940,1705693883688,-892.38,0.00027397,2]
[312223941,1705693883698,-575.11,0.00027397,2]
[312223942,1705693883708,-970.57,0.00027397,2]
[312223943,1705693883718,-1314.31,0.00027397,2]
[312223944,1705693883727,-665.66,0.00027397,2]
[312223945,1705693883737,-497.97280265,0.00027397,2]
[312223946,1705693883746,-1312.06,0.00027397,2]
[312223947,1705693883755,-20000.0,0.00027397,7]
[312223948,1705693883764,-7589.97443223,0.00027397,7]
[312223949,1705693883774,-1440.41,0.00027397,2]
[312223950,1705693883783,-500.0,0.00027397,2]
[312223951,1705693883793,-500.0,0.00027397,2]
[312223952,1705693883804,-500.0,0.00027397,2]
[312223953,1705693883814,-500.0,0.00027397,2]
[312223954,1705693883823,-801.63,0.00027397,2]
[312223955,1705693883832,-1364.63,0.00027397,2]
[312223956,1705693883842,-1869.93,0.00027397,2]
[312223957,1705693883851,-665.4,0.00027397,2]
[312223958,1705693883860,-500.0,0.00027397,2]
[312223959,1705693883870,-849.71,0.00027397,2]
[312223960,1705693883879,-500.0,0.00027397,2]
[312223961,1705693883889,-2620.86,0.00027397,2]
[312223962,1705693883898,-637.71,0.00027397,2]
[312223963,1705693883908,-1448.26,0.00027397,2]
[312223964,1705693883917,-4987.45,0.00027397,2]
[312223965,1705693883928,-555.88,0.00027397,2]
[312223966,1705693883938,-531.02,0.00027397,2]
[312223967,1705693883948,-500.0,0.00027397,2]
[312223968,1705693883957,-1552.1,0.00027397,2]
[312223969,1705693883967,-803.95,0.00027397,2]
[312223970,1705693883976,-500.0,0.00027397,2]
[312223971,1705693883986,-500.0,0.00027397,2]
[312223972,1705693883995,-896.77,0.00027397,2]
[312223973,1705693884005,-650.24,0.00027397,2]
[312223974,1705693884014,-500.0,0.00027397,2]
[312223975,1705693884023,-155.0,0.00027397,2]
[312223976,1705693884033,-722.38,0.00027397,2]
[312223977,1705693884043,-568.74,0.00027397,2]
[312223978,1705693884054,-500.0,0.00027397,2]
[312223979,1705693884063,-780.36,0.00027397,2]
[312223980,1705693884073,-500.0,0.00027397,2]
[312223981,1705693884083,-793.35,0.00027397,2]
[312223982,1705693884093,-1671.21,0.00027397,2]
[312223983,1705693884102,-799.48,0.00027397,2]
[312223984,1705693884112,-934.16,0.00027397,2]
[312223985,1705693884122,-2127.17,0.00027397,2]
[312223986,1705693884131,-1066.92,0.00027397,2]
[312223987,1705693884140,-1404.62,0.00027397,2]
[312223988,1705693884150,-500.0,0.00027397,2]
[312223989,1705693884160,-557.49,0.00027397,2]
[312223990,1705693884169,-1384.57,0.00027397,2]
[312223991,1705693884179,-2093.33,0.00027397,2]
[312223992,1705693884188,-1299.85,0.00027397,2]
[312223993,1705693884198,-500.0,0.00027397,2]
[312223994,1705693884208,-500.0,0.00027397,2]
[312223995,1705693884218,-156.53,0.00027397,2]
[312223996,1705693884227,-150.92,0.00027397,2]
[312223997,1705693884237,-153.73,0.00027397,2]
[312223998,1705693884246,-157.9,0.00027397,2]
[312223999,1705693884255,-156.25,0.00027397,2]
[312224000,1705693884265,-8000.0,0.000274,2]
[312224001,1705693884275,-150.0,0.0002741,7]
[312224002,1705693884284,-150.0,0.00027446,7]
[312224003,1705693884294,-500.0,0.00027449,2]
[312224004,1705693884308,-200.0,0.00027449,3]
[312224005,1705693884318,-800.0,0.00027449,7]
[312224006,1705693884327,-165.93960689,0.00027455,2]
[312224007,1705693884336,-150.0,0.00027481,7]
[312224008,1705693884346,-3156.0,0.000275,3]
[312224009,1705693884356,-32658.0,0.000275,3]
[312224010,1705693884365,-150.0,0.00027517,7]
[312224011,1705693884374,-150.0,0.00027552,7]
[312224012,1705693884385,-171.39,0.0002757,2]
[312224013,1705693884395,-171.39,0.0002757,2]
[312224014,1705693884404,-171.39,0.0002757,2]
[312224015,1705693884414,-171.39,0.0002757,2]
[312224016,1705693884424,-171.39,0.0002757,2]
[312224017,1705693884433,-171.39,0.0002757,2]
[312224018,1705693884442,-171.39,0.0002757,2]
[312224019,1705693884452,-171.39,0.0002757,2]
[312224020,1705693884461,-171.43,0.0002757,2]
[312224021,1705693884471,-171.43,0.0002757,2]
[312224022,1705693884480,-150.0,0.00027588,7]
[312224023,1705693884490,-1521.0,0.000276,2]
[312224024,1705693884499,-150.0,0.00027623,7]
[312224025,1705693884508,-150.0,0.00027659,7]
[312224026,1705693884518,-155.14895346,0.00027669,2]
[312224027,1705693884527,-258.77909786,0.00027669,2]
[312224028,1705693884536,-165.93960689,0.00027669,2]
[312224029,1705693884547,-500.0,0.00027671,2]
[312224030,1705693884556,-500.0,0.00027671,2]
[312224031,1705693884565,-2365.35,0.00027671,2]
[312224032,1705693884574,-500.0,0.00027671,2]
[312224033,1705693884584,-500.0,0.00027671,2]
[312224034,1705693884593,-506.13,0.00027671,2]
[312224035,1705693884603,-500.0,0.00027671,2]
[312224036,1705693884612,-500.0,0.00027671,2]
[312224037,1705693884623,-928.77,0.00027671,2]
[312224038,1705693884633,-500.0,0.00027671,2]
[312224039,1705693884643,-500.0,0.00027671,2]
[312224040,1705693884654,-1861.12,0.00027671,2]
[312224041,1705693884664,-917.31,0.00027671,2]
[312224042,1705693884674,-1764.9,0.00027671,2]
[312224043,1705693884684,-521.62,0.00027671,2]
[312224044,1705693884694,-1130.94,0.00027671,2]
[312224045,1705693884704,-1550.69,0.00027671,2]
[312224046,1705693884714,-623.05,0.00027671,2]
[312224047,1705693884723,-500.0,0.00027671,2]
[312224048,1705693884732,-771.68,0.00027671,2]
[312224049,1705693884742,-503.49,0.00027671,2]
[312224050,1705693884751,-520.51511834,0.00027671,2]
[312224051,1705693884761,-1084.24,0.00027671,2]
[312224052,1705693884770,-1823.68,0.00027671,2]
[312224053,1705693884779,-3335.07,0.00027671,2]
[312224054,1705693884788,-1731.4,0.00027671,2]
[312224055,1705693884799,-2037.15,0.00027671,2]
[312224056,1705693884809,-2037.79,0.00027671,2]
[312224057,1705693884818,-500.0,0.00027671,2]
[312224058,1705693884827,-1807.75,0.00027671,2]
[312224059,1705693884837,-680.7,0.00027671,2]
[312224060,1705693884847,-1014.02,0.00027671,2]
[312224061,1705693884858,-1949.96,0.00027671,2]
[312224062,1705693884868,-500.0,0.00027671,2]
[312224063,1705693884877,-659.73,0.00027671,2]
[312224064,1705693884886,-3033.49,0.00027671,2]
[312224065,1705693884895,-809.52,0.00027671,2]
[312224066,1705693884905,-1580.72,0.00027671,2]
[312224067,1705693884915,-2228.23,0.00027671,2]
[312224068,1705693884925,-2403.96,0.00027671,2]
[312224069,1705693884935,-715.15,0.00027671,2]
[312224070,1705693884944,-1528.36,0.00027671,2]
[312224071,1705693884954,-707.27,0.00027671,2]
[312224072,1705693884963,-839.61,0.00027671,2]
[312224073,1705693884973,-1399.25,0.00027671,2]
[312224074,1705693884982,-629.85616151,0.00027671,2]
[312224075,1705693884991,-530.2,0.00027671,2]
[312224076,1705693885001,-500.0,0.00027671,2]
[312224077,1705693885010,-390.5,0.00027671,2]
[312224078,1705693885019,-500.0,0.00027671,2]
[312224079,1705693885029,-702.87,0.00027671,2]
[312224080,1705693885038,-1669.84,0.00027671,2]
[312224081,1705693885048,-500.0,0.00027671,2]
[312224082,1705693885057,-633.49,0.00027671,2]
[312224083,1705693885067,-3055.09,0.00027671,2]
[312224084,1705693885076,-4886.42,0.00027671,2]